bitfinex/quotes_SOLUSD_20220109
["timestamp","ask_amount","ask_price","bid_price","bid_amount"]
[1641714181739,2.01311455,140.58,140.54,10.6741]
[1641714184309,2.01311455,140.59,140.54,10.6741]
[1641714186515,2.01311455,140.58,140.54,10.6741]
[1641714187415,2.01311455,140.59,140.54,10.6741]
[1641714189752,2.01311455,140.59,140.53,10.6749]
[1641714189952,2.01311455,140.59,140.52,27.569]
[1641714190151,10.4314733,140.58,140.49,1.65345313]
[1641714190350,2.01311455,140.57,140.46,34.1356]
[1641714190549,28.20401455,140.57,140.46,34.1356]
[1641714190954,10.6802,140.54,140.46,44.8154]
[1641714191150,10.6802,140.54,140.47,53.61562602]
[1641714191550,2.01311455,140.55,140.47,53.61562602]
[1641714192250,2.01311455,140.54,140.47,53.61562602]
[1641714192752,2.01311455,140.54,140.47,64.29492602]
[1641714193557,0.25,140.53,140.47,64.29492602]
[1641714193853,10.9305,140.53,140.47,53.61562602]
[1641714194454,19.4405,140.53,140.47,30.93672602]
[1641714194856,8.76,140.53,140.47,30.93672602]
[1641714195757,0.25,140.53,140.47,30.93672602]
[1641714196162,3.25,140.53,140.47,41.61622602]
[1641714197762,3.25,140.53,140.47,10.6795]
[1641714198461,5.26311455,140.53,140.47,10.6795]
[1641714198960,2.26311455,140.53,140.47,36.67986311]
[1641714200062,2.01311455,140.53,140.47,36.67986311]
[1641714200464,2.01311455,140.54,140.48,3.0]
[1641714200764,2.01311455,140.54,140.48,13.6784]
[1641714201169,2.01311455,140.55,140.48,13.6784]
[1641714202265,2.01311455,140.55,140.48,3.0]
[1641714202466,2.01311455,140.55,140.47,26.00036311]
[1641714202667,2.01311455,140.55,140.47,36.20036311]
[1641714202870,2.01311455,140.55,140.48,0.25]
[1641714203167,2.01311455,140.56,140.48,0.25]
[1641714203367,10.6802,140.54,140.48,0.25]
[1641714204368,10.6802,140.54,140.48,3.25]
[1641714204970,5.01311455,140.56,140.48,3.25]
[1641714204971,10.6791,140.55,140.48,3.25]
[1641714205875,10.6791,140.55,140.48,3.0]
[1641714206075,10.6791,140.55,140.47,48.53291624]
[1641714206575,12.69221455,140.55,140.47,48.53291624]
[1641714206774,12.69221455,140.55,140.48,3.0]
[1641714207177,2.01311455,140.55,140.48,13.6785]
[1641714210877,0.25,140.54,140.48,13.6785]
[1641714211278,2.01311455,140.56,140.48,13.6785]
[1641714211479,0.25,140.55,140.48,13.6785]
[1641714213581,2.01311455,140.55,140.49,0.25]
[1641714213780,2.01311455,140.55,140.51,10.676]
[1641714213984,2.01311455,140.55,140.52,3.0]
[1641714214182,2.01311455,140.55,140.49,0.25]
[1641714214581,2.01311455,140.56,140.49,3.25]
[1641714214982,2.01311455,140.56,140.5,1.65345313]
[1641714215182,2.01311455,140.56,140.53,10.6747]
[1641714215383,2.01311455,140.56,140.48,24.74695313]
[1641714216210,12.69221455,140.55,140.48,35.42545313]
[1641714216611,12.69221455,140.55,140.48,24.74695313]
[1641714217710,12.69221455,140.55,140.48,1.65345313]
[1641714218311,2.01311455,140.53,140.48,12.33205313]
[1641714218911,2.26311455,140.54,140.48,12.33205313]
[1641714219113,2.01311455,140.54,140.48,12.33205313]
[1641714219910,2.01311455,140.54,140.48,1.65345313]
[1641714220312,2.01311455,140.53,140.48,1.65345313]
[1641714220914,2.01311455,140.53,140.48,12.33215313]
[1641714221112,2.01311455,140.54,140.49,0.25]
[1641714221513,2.01311455,140.54,140.49,3.25]
[1641714221814,2.01311455,140.54,140.49,0.25]
[1641714222012,2.01311455,140.54,140.49,10.9278]
[1641714223026,2.01311455,140.54,140.49,10.6778]
[1641714223215,2.01311455,140.54,140.48,12.33195313]
[1641714223915,2.01311455,140.54,140.48,1.65345313]
[1641714224517,2.01311455,140.54,140.48,12.33215313]
[1641714224816,2.01311455,140.54,140.49,3.25]
[1641714225015,2.01311455,140.54,140.49,3.0]
[1641714225720,2.01311455,140.54,140.49,13.6777]
[1641714226517,25.91451455,140.55,140.49,13.6777]
[1641714226919,0.25,140.54,140.49,13.6777]
[1641714227117,25.91451455,140.55,140.49,13.6777]
[1641714227318,2.01311455,140.54,140.49,15.33115313]
[1641714227518,2.01311455,140.54,140.49,12.33115313]
[1641714228118,2.01311455,140.54,140.52,10.6755]
[1641714228321,2.01311455,140.55,140.52,10.6755]
[1641714228519,2.01311455,140.55,140.5,3.0]
[1641714229220,2.01311455,140.55,140.51,10.6759]
[1641714229622,2.01311455,140.54,140.51,10.6759]
[1641714231425,2.01311455,140.54,140.53,35.50974612]
[1641714231829,2.01311455,140.54,140.53,38.50974612]
[1641714232024,2.01311455,140.55,140.53,38.50974612]
[1641714232822,2.01311455,140.55,140.53,35.50974612]
[1641714235027,5.04531452,140.55,140.53,35.50974612]
[1641714235727,3.03219997,140.55,140.53,24.83504612]
[1641714235928,3.03219996,140.54,140.53,24.83504612]
[1641714237028,3.03219997,140.55,140.53,24.83504612]
[1641714237629,6.06439993,140.55,140.53,24.83504612]
[1641714240633,2.01311455,140.56,140.53,24.83504612]
[1641714241334,2.01311455,140.56,140.53,35.50994612]
[1641714242264,2.01311455,140.56,140.53,37.16339925]
[1641714242469,4.03128147,140.59,140.55,37.0]
[1641714242664,4.03128147,140.59,140.54,3.25]
[1641714242665,4.03128147,140.59,140.57,10.6709]
[1641714243067,28.36128147,140.63,140.58,3.0]
[1641714243266,4.03128147,140.63,140.59,30.81617147]
[1641714243466,0.25,140.62,140.59,30.81617147]
[1641714243666,0.25,140.62,140.59,41.48657147]
[1641714244667,0.25,140.62,140.6,3.0]
[1641714244968,80.81968147,140.64,140.6,13.6695]
[1641714245165,0.25,140.63,140.6,13.6695]
[1641714246368,0.25,140.63,140.6,10.6695]
[1641714247474,0.25,140.63,140.59,41.48647147]
[1641714248271,0.25,140.63,140.59,30.81617147]
[1641714248473,0.25,140.63,140.57,24.3639]
[1641714249370,10.9234,140.63,140.57,24.3639]
[1641714249771,10.9234,140.63,140.56,37.02060429]
[1641714251373,0.25,140.63,140.56,37.02060429]
[1641714252473,0.25,140.63,140.57,13.672]
[1641714252674,0.25,140.63,140.57,3.0]
[1641714253572,10.923,140.63,140.56,26.82060429]
[1641714253775,0.25,140.63,140.56,26.82060429]
[1641714254877,0.25,140.63,140.56,37.49260429]
[1641714255074,0.25,140.63,140.57,3.0]
[1641714255875,0.25,140.63,140.57,13.672]
[1641714256974,0.25,140.63,140.57,3.0]
[1641714258974,0.25,140.63,140.58,10.6712]
[1641714259975,0.25,140.63,140.57,3.0]
[1641714260378,0.25,140.63,140.56,26.82060429]
[1641714260576,0.25,140.63,140.57,0.25]
[1641714261881,0.25,140.63,140.57,3.25]
[1641714262079,3.25,140.63,140.57,3.25]
[1641714262479,3.25,140.63,140.57,0.25]
[1641714262680,3.25,140.63,140.57,10.922]
[1641714263281,0.25,140.63,140.57,10.922]
[1641714265986,0.25,140.63,140.54,10.2]
[1641714266183,0.25,140.63,140.51,32.88428313]
[1641714266184,6.874,140.63,140.51,32.88428313]
[1641714266384,9.874,140.63,140.51,22.35348313]
[1641714266784,20.547,140.63,140.51,22.35348313]
[1641714266984,40.86867432,140.62,140.52,29.27167988]
[1641714267184,40.86867432,140.62,140.52,39.94687988]
[1641714267185,48.93161189,140.62,140.52,39.94687988]
[1641714267888,8.06293757,140.61,140.52,39.94687988]
[1641714268115,8.06293757,140.61,140.53,3.0]
[1641714268315,10.6755,140.6,140.53,13.675]
[1641714269315,14.70678147,140.6,140.53,13.675]
[1641714270915,0.25,140.59,140.53,13.675]
[1641714271919,0.25,140.59,140.52,39.94717988]
[1641714272820,4.03128147,140.6,140.52,50.14717988]
[1641714273024,4.03128147,140.6,140.53,3.0]
[1641714273223,4.03128147,140.6,140.56,10.6712]
[1641714273422,4.03128147,140.63,140.56,10.6712]
[1641714273621,4.03128147,140.63,140.57,0.25]
[1641714273821,4.03128147,140.63,140.55,3.26]
[1641714274022,4.03128147,140.63,140.55,3.51]
[1641714274822,4.03128147,140.63,140.59,10.6702]
[1641714275024,76.7884,140.64,140.59,41.49432772]
[1641714276827,4.03128147,140.65,140.59,41.49432772]
[1641714277025,4.03128147,140.65,140.6,3.0]
[1641714277227,4.03128147,140.65,140.62,10.6681]
[1641714277428,6.06439993,140.64,140.62,10.6681]
[1641714277628,6.06439993,140.64,140.63,0.25]
[1641714277825,6.06439993,140.64,140.63,3.25]
[1641714278026,6.06439993,140.64,140.63,41.25]
[1641714278227,4.03128147,140.68,140.64,3.03219997]
[1641714278432,4.03128147,140.68,140.65,28.94194731]
[1641714278627,4.03128147,140.68,140.65,42.39194731]
[1641714278826,6.03435651,140.71,140.67,28.0]
[1641714279029,6.03435651,140.71,140.68,3.0]
[1641714279227,6.03435651,140.71,140.69,10.662]
[1641714279626,6.03435651,140.71,140.7,29.0]
[1641714280027,78.1633,140.76,140.7,3.0]
[1641714280228,6.03435651,140.77,140.7,13.6597]
[1641714280430,6.03435651,140.77,140.7,10.6597]
[1641714280628,6.03435651,140.77,140.66,25.9934]
[1641714280831,6.03435651,140.77,140.67,0.25]
[1641714281030,16.69695651,140.77,140.67,35.5384]
[1641714281230,0.25,140.76,140.67,35.5384]
[1641714281530,0.25,140.76,140.66,36.1934]
[1641714281531,0.25,140.76,140.69,10.6622]
[1641714281730,0.25,140.76,140.68,3.0]
[1641714281931,1.53766174,140.76,140.64,10.2]
[1641714282133,3.0,140.75,140.64,10.2]
[1641714282334,9.554,140.75,140.64,10.2]
[1641714282832,9.554,140.75,140.65,23.90383208]
[1641714283034,10.6665,140.72,140.65,23.90383208]
[1641714283233,84.42734476,140.74,140.64,10.2]
[1641714283436,8.459,140.72,140.61,10.2]
[1641714283834,3.0,140.71,140.61,10.2]
[1641714284533,8.349,140.71,140.61,10.2]
[1641714284734,10.671,140.67,140.61,10.2]
[1641714284933,3.25,140.7,140.61,10.2]
[1641714285134,0.25,140.7,140.61,10.2]
[1641714285635,10.6712,140.66,140.6,29.66520203]
[1641714285835,18.8352,140.66,140.6,29.66520203]
[1641714286235,18.8352,140.66,140.57,10.2]
[1641714286435,18.8352,140.66,140.54,629.20256167]
[1641714286436,18.8352,140.66,140.54,545.77046167]
[1641714286636,3.0,140.65,140.54,545.77046167]
[1641714286837,10.6759,140.6,140.54,545.77046167]
[1641714287037,17.8489,140.6,140.54,545.77046167]
[1641714287438,17.8489,140.6,140.52,23.90402503]
[1641714288642,3.0,140.59,140.52,23.90402503]
[1641714288841,10.6795,140.56,140.52,23.90402503]
[1641714290241,10.6795,140.56,140.49,11.71279422]
[1641714290441,17.7905,140.56,140.45,10.2]
[1641714290642,17.7905,140.56,140.45,13.2]
[1641714291042,10.6843,140.5,140.45,13.2]
[1641714291250,17.3253,140.5,140.45,42.88392482]
[1641714291742,6.641,140.5,140.45,42.88392482]
[1641714292344,6.641,140.5,140.45,13.2]
[1641714292543,35.6122,140.53,140.45,13.2]
[1641714292743,76.4512,140.54,140.45,13.2]
[1641714293144,10.6824,140.52,140.45,13.2]
[1641714293343,10.6824,140.52,140.46,24.64992531]
[1641714293542,10.6824,140.52,140.45,13.2]
[1641714293543,10.6824,140.52,140.45,3.0]
[1641714293945,10.6824,140.52,140.44,3.0]
[1641714294145,10.6824,140.52,140.44,13.6814]
[1641714294369,18.0404,140.52,140.44,3.0]
[1641714294569,18.0404,140.52,140.44,28.07627188]
[1641714295369,10.6824,140.52,140.44,28.07627188]
[1641714295568,10.6824,140.52,140.45,3.0]
[1641714295769,112.0626,140.54,140.44,28.07627188]
[1641714295970,76.4512,140.54,140.44,28.07627188]
[1641714296170,87.1317,140.54,140.44,38.75757188]
[1641714296371,0.25,140.53,140.44,38.75757188]
[1641714296970,0.25,140.53,140.45,3.0]
[1641714297172,10.9311,140.53,140.45,3.0]
[1641714297572,10.9311,140.53,140.43,10.2]
[1641714297772,19.6641,140.53,140.4,10.2]
[1641714297971,3.0,140.52,140.42,3.0]
[1641714298373,10.6863,140.47,140.42,3.0]
[1641714298573,10.6863,140.47,140.41,3.0]
[1641714298973,15.09479467,140.51,140.41,3.0]
[1641714299376,10.6856,140.48,140.41,3.0]
[1641714299976,0.25,140.47,140.41,3.0]
[1641714300179,0.25,140.47,140.4,3.0]
[1641714300377,0.25,140.5,140.39,23.60203167]
[1641714300577,10.6842,140.5,140.4,10.45]
[1641714300777,23.8529,140.53,140.41,0.07]
[1641714300978,3.0,140.52,140.44,10.6808]
[1641714301278,49.69714486,140.53,140.41,11.71279422]
[1641714301477,60.37854486,140.53,140.41,11.71279422]
[1641714301878,3.25,140.52,140.4,10.2]
[1641714302078,3.25,140.52,140.42,10.6828]
[1641714302280,3.25,140.52,140.41,3.0]
[1641714302980,0.25,140.52,140.42,0.25]
[1641714303382,0.25,140.53,140.42,0.25]
[1641714303982,0.25,140.53,140.42,0.51]
[1641714304187,0.25,140.53,140.45,10.6806]
[1641714304583,0.25,140.53,140.45,40.95326621]
[1641714304983,0.25,140.53,140.46,3.0]
[1641714305183,0.25,140.53,140.47,10.6791]
[1641714306084,76.4512,140.54,140.46,3.0]
[1641714306785,76.4512,140.54,140.45,40.95256621]
[1641714306982,76.4512,140.54,140.46,0.25]
[1641714307384,0.25,140.53,140.46,0.25]
[1641714310185,87.1318,140.54,140.46,3.25]
[1641714310388,16.23435651,140.61,140.47,0.33]
[1641714310588,16.23435651,140.61,140.48,10.2]
[1641714310786,6.03435651,140.61,140.49,0.26]
[1641714310986,205.21465651,140.64,140.5,10.2]
[1641714311186,228.97828471,140.64,140.51,23.85348668]
[1641714311387,228.97828471,140.64,140.51,37.05348668]
[1641714311586,228.97828471,140.64,140.52,3.0]
[1641714311788,10.6747,140.62,140.52,3.0]
[1641714311985,3.0,140.61,140.51,34.05348668]
[1641714313190,13.6756,140.61,140.51,34.05348668]
[1641714313991,3.0,140.61,140.51,34.05348668]
[1641714314192,3.0,140.61,140.55,10.6729]
[1641714314394,3.0,140.63,140.55,10.6729]
[1641714315793,16.70605651,140.66,140.56,3.0]
[1641714315794,0.25,140.62,140.56,3.0]
[1641714315994,131.18628658,140.67,140.57,23.05120678]
[1641714316192,131.18628658,140.67,140.58,10.6706]
[1641714316193,0.25,140.65,140.58,10.6706]
[1641714316393,0.25,140.66,140.58,10.6706]
[1641714317195,79.4193,140.67,140.58,10.6706]
[1641714317395,79.4193,140.67,140.59,3.0]
[1641714317594,52.74785651,140.68,140.59,13.6695]
[1641714317796,85.02135651,140.7,140.6,0.25]
[1641714317996,85.02135651,140.7,140.6,10.45]
[1641714318196,85.02135651,140.7,140.6,10.71]
[1641714318396,85.02135651,140.7,140.61,3.0]
[1641714318600,78.987,140.7,140.64,10.6662]
[1641714318798,94.7,140.72,140.64,10.6662]
[1641714318998,3.0,140.71,140.61,3.0]
[1641714319200,4.51954322,140.71,140.61,3.0]
[1641714319400,0.25,140.7,140.61,3.0]
[1641714319601,10.6693,140.69,140.6,20.8692]
[1641714319798,10.6693,140.69,140.6,44.54977576]
[1641714321500,0.25,140.68,140.6,44.54977576]
[1641714324003,48.2863,140.73,140.61,0.25]
[1641714324203,48.2863,140.73,140.62,10.6673]
[1641714325002,58.9526,140.73,140.63,3.0]
[1641714325609,48.2863,140.73,140.65,10.6656]
[1641714326002,81.89445651,140.74,140.65,10.6656]
[1641714326503,75.8601,140.74,140.65,10.6656]
[1641714326703,75.8601,140.74,140.63,10.2]
[1641714326704,75.8601,140.74,140.66,38.20699395]
[1641714327804,75.8601,140.74,140.67,10.9138]
[1641714328028,75.8601,140.74,140.67,13.6638]
[1641714328629,72.8601,140.74,140.67,13.6638]
[1641714329631,0.25,140.73,140.67,13.6638]
[1641714330029,0.25,140.73,140.68,0.25]
[1641714330329,0.25,140.73,140.69,10.6625]
[1641714330928,24.5393,140.77,140.69,10.6625]
[1641714332829,24.5393,140.77,140.68,10.9134]
[1641714333030,35.2024,140.77,140.67,3.0]
[1641714333230,0.25,140.76,140.66,27.54209395]
[1641714333429,0.25,140.76,140.66,37.74209395]
[1641714334031,0.25,140.76,140.67,10.6643]
[1641714334431,10.9143,140.76,140.66,37.74209395]
[1641714334932,10.9143,140.76,140.67,0.25]
[1641714335130,10.9143,140.76,140.67,10.9139]
[1641714335330,10.9143,140.76,140.67,10.6639]
[1641714335731,10.9143,140.76,140.66,37.74209395]
[1641714336331,10.9143,140.76,140.67,0.25]
[1641714336532,10.9143,140.76,140.67,10.9138]
[1641714337436,0.25,140.76,140.67,10.9138]
[1641714337633,0.25,140.76,140.66,37.74209395]
[1641714337832,4.7773811,140.76,140.66,10.2]
[1641714338037,4.7773811,140.76,140.64,23.1166]
[1641714338038,14.9773811,140.76,140.64,23.1166]
[1641714338432,25.6409811,140.76,140.64,23.1166]
[1641714339836,25.6409811,140.76,140.65,0.25]
[1641714340036,25.6409811,140.76,140.64,23.1166]
[1641714340933,33.06354392,140.76,140.65,0.25]
[1641714341937,23.6595,140.75,140.64,0.25]
[1641714342136,10.6685,140.7,140.64,0.25]
[1641714342736,10.6685,140.7,140.63,27.51620469]
[1641714343034,10.6685,140.7,140.62,22.5388]
[1641714343237,10.6685,140.7,140.63,3.0]
[1641714343841,10.6685,140.7,140.62,3.0]
[1641714344044,10.6685,140.7,140.63,24.91509204]
[1641714344846,10.6676,140.71,140.63,24.91509204]
[1641714345646,99.1121,140.73,140.63,24.91509204]
[1641714345847,0.25,140.72,140.63,35.58239204]
[1641714346049,0.25,140.72,140.64,3.0]
[1641714346780,0.25,140.72,140.63,24.91509204]
[1641714346949,0.25,140.72,140.64,3.0]
[1641714347156,0.25,140.72,140.64,3.25]
[1641714348349,0.25,140.72,140.64,0.25]
[1641714348649,0.25,140.72,140.64,3.25]
[1641714349148,0.25,140.72,140.64,13.6663]
[1641714349347,0.25,140.72,140.65,0.25]
[1641714349551,99.1121,140.73,140.65,0.25]
[1641714350153,99.1121,140.73,140.64,3.0]
[1641714350349,99.1121,140.73,140.65,0.25]
[1641714350750,109.778,140.73,140.65,0.25]
[1641714351650,3.0,140.72,140.65,0.25]
[1641714351854,10.6678,140.71,140.64,0.25]
[1641714352856,10.6666,140.72,140.64,10.9166]
[1641714353255,0.25,140.71,140.64,10.9166]
[1641714353455,99.1121,140.73,140.64,10.9166]
[1641714353656,0.25,140.72,140.64,10.9166]
[1641714353857,0.25,140.72,140.65,3.0]
[1641714354056,0.25,140.72,140.66,10.6647]
[1641714354586,0.25,140.72,140.67,3.0]
[1641714354988,0.25,140.72,140.64,3.25]
[1641714355190,0.25,140.72,140.64,3.51]
[1641714355387,0.25,140.72,140.67,10.6644]
[1641714355587,76.4748,140.73,140.67,10.6644]
[1641714356187,76.4748,140.73,140.64,63.4536]
[1641714356388,76.4748,140.73,140.67,10.6644]
[1641714356988,0.25,140.72,140.67,10.6644]
[1641714362597,2.016386,140.68,140.67,10.6644]
[1641714362800,2.016386,140.68,140.67,16.72879992]
[1641714362999,2.016386,140.68,140.67,19.72879992]
[1641714364500,0.25,140.72,140.67,19.72879992]
[1641714368507,2.01659522,140.69,140.67,19.72879992]
[1641714369508,2.01659522,140.69,140.68,3.0]
[1641714369706,2.01659522,140.69,140.68,13.661]
[1641714370908,2.01659522,140.69,140.67,6.06439992]
[1641714372511,2.01659522,140.69,140.67,16.72869992]
[1641714373711,2.01659522,140.68,140.67,6.06439992]
[1641714375415,2.01659522,140.68,140.67,16.72889992]
[1641714376416,8.06624413,140.71,140.67,16.72889992]
[1641714376819,8.06624413,140.71,140.67,6.06439992]
[1641714377021,4.03320194,140.7,140.67,6.06439992]
[1641714377622,4.03320194,140.7,140.64,24.398]
[1641714377820,4.03320194,140.7,140.66,10.6652]
[1641714378319,2.01761583,140.67,140.65,3.25]
[1641714378523,2.01761583,140.67,140.65,0.25]
[1641714378920,2.01761583,140.67,140.65,10.9159]
[1641714379620,2.01761583,140.67,140.66,6.06439992]
[1641714380021,2.01761583,140.67,140.66,9.06439992]
[1641714380844,2.01761583,140.67,140.66,19.72889992]
[1641714381546,2.01761583,140.67,140.66,16.72889992]
[1641714382547,2.01761583,140.67,140.66,6.06439992]
[1641714382950,4.03320194,140.7,140.66,6.06439992]
[1641714383148,4.03320194,140.7,140.66,3.03219997]
[1641714383552,4.03320194,140.69,140.66,3.03219997]
[1641714383754,4.03320194,140.69,140.66,13.69719997]
[1641714383951,4.03320194,140.69,140.66,10.665]
[1641714384150,4.03320194,140.7,140.66,10.665]
[1641714384551,4.03320194,140.7,140.67,3.0]
[1641714385152,4.03320194,140.7,140.64,3.0]
[1641714385450,4.03320194,140.7,140.64,3.25]
[1641714385851,4.03320194,140.7,140.64,3.0]
[1641714386854,4.28320194,140.69,140.65,10.6658]
[1641714387953,4.03320194,140.69,140.65,10.6658]
[1641714388154,4.03320194,140.69,140.66,3.0]
[1641714388354,4.03320194,140.69,140.67,10.6643]
[1641714389356,4.03320194,140.69,140.66,10.6651]
[1641714389754,4.03320194,140.69,140.67,6.06439992]
[1641714390457,0.25,140.68,140.67,6.06439992]
[1641714390855,0.25,140.68,140.67,3.03219995]
[1641714391759,0.25,140.68,140.63,24.91509204]
[1641714391959,0.25,140.68,140.58,13.91256729]
[1641714392159,0.25,140.68,140.58,24.5144]
[1641714392360,4.7773811,140.68,140.58,24.5144]
[1641714392560,25.5070811,140.68,140.56,10.2]
[1641714392761,10.6722,140.64,140.57,13.6719]
[1641714392960,4.03320194,140.65,140.56,10.2]
[1641714393160,4.03320194,140.65,140.53,37.22755313]
[1641714393161,4.03320194,140.65,140.54,10.2]
[1641714393560,3.0,140.64,140.54,10.2]
[1641714393965,26.9074,140.64,140.55,24.1533461]
[1641714394162,10.6736,140.62,140.55,34.8266461]
[1641714394562,10.6736,140.62,140.55,24.1533461]
[1641714395062,0.25,140.61,140.55,24.1533461]
[1641714395263,3.0,140.62,140.55,24.1533461]
[1641714395463,3.25,140.62,140.55,24.1533461]
[1641714395670,10.6746,140.61,140.55,24.1533461]
[1641714397270,10.6746,140.61,140.54,10.6737]
[1641714397470,10.6746,140.61,140.53,10.6748]
[1641714397670,10.6746,140.61,140.5,10.2]
[1641714397970,10.6765,140.58,140.5,10.2]
[1641714398170,10.6765,140.58,140.51,3.0]
[1641714398571,10.6765,140.58,140.5,10.2]
[1641714398973,3.0,140.57,140.5,10.2]
[1641714399176,13.6772,140.57,140.5,10.2]
[1641714399400,13.6772,140.57,140.51,0.25]
[1641714399801,13.6772,140.57,140.5,0.25]
[1641714400901,13.6772,140.57,140.5,10.9273]
[1641714401706,13.6772,140.57,140.5,0.25]
[1641714402905,13.6772,140.57,140.49,25.17460472]
[1641714405004,0.25,140.56,140.49,25.17460472]
[1641714405205,10.6786,140.55,140.49,25.17460472]
[1641714410610,10.6776,140.56,140.49,35.85270472]
[1641714411012,0.25,140.55,140.49,35.85270472]
[1641714411611,23.8146,140.58,140.52,10.6757]
[1641714412015,77.21286235,140.6,140.53,3.0]
[1641714412214,77.21286235,140.6,140.53,3.25]
[1641714412612,75.3074,140.6,140.53,3.25]
[1641714412814,75.3074,140.6,140.53,0.25]
[1641714413013,75.3074,140.6,140.55,10.6731]
[1641714413413,75.3074,140.6,140.55,33.58700521]
[1641714415514,75.3074,140.6,140.56,0.25]
[1641714415715,75.3074,140.6,140.56,10.6723]
[1641714415914,35.39896235,140.63,140.56,10.6723]
[1641714416515,33.4935,140.63,140.56,10.6723]
[1641714416917,33.4935,140.63,140.52,27.4071]
[1641714417118,33.4935,140.63,140.52,37.6071]
[1641714417316,35.39896235,140.63,140.53,0.25]
[1641714417817,35.39896235,140.63,140.53,26.89344667]
[1641714418044,1.90546235,140.61,140.54,3.0]
[1641714418618,1.90546235,140.61,140.53,26.89344667]
[1641714418818,1.90546235,140.62,140.54,3.0]
[1641714419018,0.25,140.6,140.54,3.0]
[1641714419218,3.0,140.61,140.56,10.6724]
[1641714419419,0.25,140.6,140.56,10.6724]
[1641714419621,12.57836235,140.62,140.56,10.6724]
[1641714419820,0.25,140.61,140.56,10.6724]
[1641714420019,2.15546235,140.61,140.56,10.6724]
[1641714421422,0.25,140.61,140.56,10.6724]
[1641714422324,10.9238,140.61,140.54,38.4618]
[1641714422525,10.9238,140.61,140.55,0.25]
[1641714422727,0.25,140.61,140.55,0.25]
[1641714423127,2.15546235,140.61,140.55,0.25]
[1641714423326,1.90546235,140.61,140.55,0.25]
[1641714423826,1.90546235,140.61,140.55,10.9231]
[1641714424428,1.90546235,140.61,140.54,27.788]
[1641714424629,1.90546235,140.61,140.53,26.64344667]
[1641714424828,1.90546235,140.61,140.53,36.84344667]
[1641714425028,1.90546235,140.6,140.53,36.84344667]
[1641714425228,12.58026235,140.6,140.53,36.84344667]
[1641714426158,1.90546235,140.6,140.54,3.0]
[1641714426458,1.90546235,140.6,140.54,3.25]
[1641714426859,1.90546235,140.6,140.54,3.0]
[1641714427064,1.90546235,140.6,140.55,0.25]
[1641714428661,12.57976235,140.61,140.55,10.9235]
[1641714429261,12.57976235,140.61,140.55,0.25]
[1641714430063,12.57976235,140.61,140.53,47.51864667]
[1641714430467,0.25,140.6,140.53,47.51864667]
[1641714430664,12.83036235,140.6,140.53,47.51864667]
[1641714430864,12.58036235,140.6,140.53,47.51864667]
[1641714431064,0.25,140.59,140.53,47.51864667]
[1641714431764,2.15546235,140.59,140.53,47.51864667]
[1641714431964,0.25,140.58,140.53,47.51864667]
[1641714432365,0.25,140.58,140.54,3.0]
[1641714432568,0.25,140.58,140.54,13.6741]
[1641714432765,0.25,140.58,140.54,10.6741]
[1641714433366,1.90546235,140.6,140.54,10.6741]
[1641714433566,0.25,140.59,140.53,47.51834667]
[1641714433967,2.15546235,140.59,140.53,47.51834667]
[1641714434168,1.90546235,140.59,140.53,47.51834667]
[1641714434974,0.25,140.58,140.53,47.51834667]
[1641714435170,0.25,140.58,140.54,3.0]
[1641714435469,0.25,140.58,140.55,10.6736]
[1641714436672,0.25,140.58,140.56,3.0]
[1641714436877,0.25,140.58,140.56,13.6727]
[1641714437372,0.25,140.58,140.53,51.46084667]
[1641714437575,0.25,140.58,140.54,3.0]